bitfinex/quotes_ETHUSD_20250602
["timestamp","ask_amount","ask_price","bid_price","bid_amount"]
[1748835945929,0.37956877,2499.9,2499.5,0.8227]
[1748835946124,2.40010138,2499.9,2499.5,0.8227]
[1748835949737,6.57607275,2500.0,2499.5,3.22317227]
[1748835950054,0.37977523,2499.9,2499.5,3.22317227]
[1748835950256,6.57607275,2500.0,2499.5,3.22317227]
[1748835950457,0.37979289,2499.9,2499.5,3.22317227]
[1748835950620,2.40007275,2500.0,2499.5,3.22317227]
[1748835950950,0.37982437,2499.9,2499.5,3.22317227]
[1748835951152,2.40007275,2500.0,2499.5,3.22317227]
[1748835951306,0.37982522,2499.9,2499.5,3.22317227]
[1748835951654,2.40007275,2500.0,2499.5,3.22317227]
[1748835951819,0.37986802,2499.9,2499.5,3.22317227]
[1748835952024,2.40007275,2500.0,2499.5,3.22317227]
[1748835952225,0.37987182,2499.9,2499.5,0.8227]
[1748835952457,2.40007275,2500.0,2499.5,0.8227]
[1748835952665,2.78002839,2499.9,2499.5,0.8227]
[1748835952815,2.40010335,2499.9,2499.5,0.8227]
[1748835953218,2.81613662,2499.8,2499.5,0.8227]
[1748835957845,0.38058786,2499.7,2499.5,0.8227]
[1748835958032,2.81613662,2499.8,2499.5,0.8227]
[1748835958535,0.38063439,2499.7,2499.5,0.8227]
[1748835958836,2.81613662,2499.8,2499.5,0.8227]
[1748835959034,0.3810233,2499.7,2499.5,0.8227]
[1748835959369,2.81613662,2499.8,2499.5,0.8227]
[1748835959557,0.38102366,2499.7,2499.5,0.8227]
[1748835959759,2.81613662,2499.8,2499.5,0.8227]
[1748835959976,0.38098555,2499.7,2499.5,0.8227]
[1748835960144,2.81613662,2499.8,2499.5,0.8227]
[1748835960480,0.38099052,2499.7,2499.5,0.8227]
[1748835960766,2.81613662,2499.8,2499.5,0.8227]
[1748835960956,0.38098968,2499.7,2499.5,0.8227]
[1748835961271,2.81613662,2499.8,2499.5,0.8227]
[1748835961467,0.38099036,2499.7,2499.5,0.8227]
[1748835961659,2.81613662,2499.8,2499.5,0.8227]
[1748835961875,0.38099433,2499.7,2499.5,0.8227]
[1748835962181,2.81613662,2499.8,2499.5,0.8227]
[1748835962487,0.38099471,2499.7,2499.5,0.8227]
[1748835962654,2.81613662,2499.8,2499.5,0.8227]
[1748835962855,0.38103169,2499.7,2499.5,0.8227]
[1748835963034,2.81613662,2499.8,2499.5,0.8227]
[1748835963234,0.38105632,2499.7,2499.5,0.8227]
[1748835963431,2.81613662,2499.8,2499.5,0.8227]
[1748835963656,0.38109346,2499.7,2499.5,0.8227]
[1748835963857,5.21636173,2499.8,2499.5,0.8227]
[1748835964045,0.38109586,2499.7,2499.5,0.8227]
[1748835964241,5.21636173,2499.8,2499.5,0.8227]
[1748835964459,2.81613662,2499.6,2499.5,0.8227]
[1748835964763,0.38110016,2499.6,2499.5,0.8227]
[1748835965434,0.47624338,2500.2,2499.6,3.1815109]
[1748835965637,0.38100187,2500.1,2499.4,0.8097]
[1748835965835,2.39972651,2500.3,2499.9,0.8097]
[1748835966066,0.38089913,2500.2,2499.9,0.8097]
[1748835966370,0.38089913,2500.1,2499.9,0.8097]
[1748835966574,9.37767409,2500.5,2499.9,0.8097]
[1748835966768,0.38032957,2500.4,2499.9,3.20977706]
[1748835966933,0.38032957,2500.3,2500.0,2.39994954]
[1748835967138,0.55,2500.8,2500.0,2.39994954]
[1748835967139,3.29154858,2500.8,2500.4,0.7757]
[1748835967339,0.38032871,2500.7,2500.4,0.7757]
[1748835967670,2.81613662,2500.8,2500.4,0.7757]
[1748835967874,0.37994375,2500.7,2500.4,0.7757]
[1748835968104,2.81613662,2500.8,2500.4,0.7757]
[1748835968105,5.21538095,2500.8,2500.4,0.7757]
[1748835968312,0.37990373,2500.7,2500.4,0.7757]
[1748835968474,5.21538095,2500.8,2500.4,1.09324847]
[1748835969285,2.94898675,2501.1,2500.5,2.39951387]
[1748835969469,11.1957887,2501.0,2500.4,1.09324847]
[1748835969692,2.81613662,2500.8,2500.4,0.7757]
[1748835969887,2.81613662,2500.8,2500.4,3.17529081]
[1748835970184,2.81613662,2500.8,2500.5,2.39948461]
[1748835970382,2.81613662,2500.8,2500.4,0.7757]
[1748835970383,2.81613662,2500.8,2500.4,3.17529747]
[1748835970769,2.39915249,2500.9,2500.4,3.17529747]
[1748835970976,5.21528911,2500.9,2500.4,0.7757]
[1748835971820,2.81613662,2500.7,2500.2,0.7862]
[1748835972000,2.81613662,2500.7,2500.2,3.18594738]
[1748835972178,2.81613662,2500.7,2500.3,0.31859474]
[1748835972977,2.39927678,2500.8,2500.3,2.71830305]
[1748835973178,2.81613662,2500.8,2500.3,2.71830305]
[1748835973879,2.81613662,2500.6,2500.3,0.31859474]
[1748835974611,5.21557885,2500.6,2500.3,0.31859474]
[1748835974816,5.21557885,2500.6,2500.2,0.7862]
[1748835975021,5.21559952,2500.6,2500.2,0.7862]
[1748835975217,2.81613662,2500.6,2500.2,0.7862]
[1748835975414,5.21558497,2500.6,2500.2,0.7862]
[1748835975602,2.81613662,2500.6,2500.2,3.18597975]
[1748835975807,2.81613662,2500.6,2500.3,0.31859797]
[1748835976115,2.81613662,2500.6,2500.2,0.7862]
[1748835976473,5.21557569,2500.6,2500.2,0.7862]
[1748835977278,2.81613662,2500.6,2500.2,0.7862]
[1748835977880,2.81613662,2500.6,2500.2,3.185998]
[1748835979126,2.81613662,2500.6,2500.3,2.39970815]
[1748835979327,2.81613662,2500.8,2500.4,0.55857003]
[1748835979490,2.81613662,2500.8,2500.3,2.39970815]
[1748835979986,5.21537462,2500.8,2500.3,2.39967762]
[1748835980420,2.81613662,2500.6,2500.2,0.7862]
[1748835980622,2.81613662,2500.6,2500.2,3.18599]
[1748835981429,2.81613662,2500.6,2500.2,0.7862]
[1748835981606,2.81613662,2500.6,2500.2,1.34480587]
[1748835981929,2.81613662,2500.6,2500.2,3.74458166]
[1748835982228,2.81613662,2500.6,2500.3,2.399707]
[1748835982832,5.21537004,2500.8,2500.3,2.399707]
[1748835983238,2.81613662,2500.8,2500.3,2.399707]
[1748835984799,5.21538751,2500.8,2500.3,2.399707]
[1748835985440,5.21538751,2500.8,2500.2,3.74457474]
[1748835985640,2.81613662,2500.6,2500.3,2.39969511]
[1748835987623,2.81613662,2500.6,2500.2,1.34480587]
[1748835988055,2.81613662,2500.6,2500.2,3.74459904]
[1748835989267,2.81613662,2500.6,2500.2,0.55860587]
[1748835989268,0.7666,2500.5,2500.2,0.55860587]
[1748835989441,2.81613662,2500.3,2499.9,2.40004559]
[1748835990540,2.81613662,2500.3,2500.0,2.3999971]
[1748835991071,5.9823063,2500.5,2500.0,2.3999971]
[1748835991452,4.16,2500.6,2500.2,2.39977818]
[1748835991645,6.55942635,2500.6,2500.1,2.3998867]
[1748835991971,2.39942635,2500.6,2500.1,2.87986657]
[1748835992164,2.81613662,2500.5,2500.1,2.87986657]
[1748835994367,5.21565959,2500.5,2500.0,2.39996484]
[1748835994577,2.81613662,2500.5,2500.0,2.39996484]
[1748835994763,5.21568049,2500.5,2500.0,2.39996484]
[1748835995280,2.77977847,2500.4,2499.8,3.18195364]
[1748835995454,5.21569123,2500.5,2500.0,2.39999876]
[1748835995653,0.3802581,2500.4,2500.0,2.39999876]
[1748835995871,5.21569123,2500.5,2500.0,2.39999876]
[1748835996072,0.38025805,2500.4,2500.0,2.39999876]
[1748835996272,5.21569123,2500.5,2500.0,2.39999876]
[1748835996470,0.38026229,2500.4,2499.9,2.40007356]
[1748835996670,2.81613662,2500.5,2500.0,2.71814767]
[1748835996988,0.38031516,2500.4,2500.1,2.39989779]
[1748835997184,2.81613662,2500.5,2500.1,2.39989779]
[1748835997350,0.38031701,2500.4,2500.1,2.39989779]
[1748835997551,2.81613662,2500.5,2500.0,2.71814514]
[1748835997750,0.38029981,2500.4,2500.1,2.39989872]
[1748835997952,2.81613662,2500.5,2500.1,2.39989872]
[1748835998150,0.38029545,2500.4,2500.1,2.39989269]
[1748835998371,9.37552225,2500.7,2500.1,0.51181536]
[1748835998579,0.38028818,2500.6,2500.2,2.3998074]
[1748835998852,0.38028818,2500.5,2500.2,2.3998074]
[1748835999184,0.38028002,2500.4,2500.2,2.3998074]
[1748835999391,9.37552225,2500.7,2500.2,2.3998074]
[1748835999691,0.38022923,2500.6,2500.2,2.3998074]
[1748836000014,0.38022923,2500.5,2500.2,2.3998074]
[1748836000297,0.8099,2500.8,2500.2,1.33266058]
[1748836000595,0.38021701,2500.7,2500.3,2.39962712]
[1748836000748,0.38021701,2500.6,2500.3,2.39962712]
[1748836000949,6.02533946,2500.8,2500.2,3.2012315]
[1748836001165,0.38026694,2500.7,2500.2,3.2012315]
[1748836001492,0.38026694,2500.6,2500.3,2.3997107]
[1748836001699,6.02533946,2500.8,2500.3,2.3997107]
[1748836001902,0.38027414,2500.7,2500.3,2.3997107]
[1748836002102,0.3802699,2500.6,2500.3,2.3997107]
[1748836002261,6.02533946,2500.8,2500.3,2.3997107]
[1748836002458,0.38027336,2500.7,2500.3,2.3997107]
[1748836002661,0.3802755,2500.6,2500.3,2.3997107]
[1748836002986,3.62603662,2500.8,2500.4,2.39955659]
[1748836003288,0.38027375,2500.7,2500.4,2.39955659]
[1748836003466,3.62603662,2500.8,2500.4,2.39955659]
[1748836003666,0.38027025,2500.7,2500.4,2.39955659]
[1748836003856,3.62603662,2500.8,2500.4,2.39955659]
[1748836004056,0.38028301,2500.7,2500.4,2.39955659]
[1748836004300,3.62603662,2500.8,2500.4,3.01564442]
[1748836004459,0.38028713,2500.7,2500.4,3.01564442]
[1748836004659,3.62603662,2500.8,2500.4,3.01564442]
[1748836004877,0.38027648,2500.7,2500.4,3.01564442]
[1748836005080,0.8099,2500.8,2500.4,3.01564442]
[1748836005257,0.38028258,2500.7,2500.4,3.01564442]
[1748836005457,3.62603662,2500.8,2500.4,3.01564442]
[1748836005717,0.38027528,2500.7,2500.4,3.01564442]
[1748836005893,6.02528519,2500.8,2500.4,0.61608783]
[1748836006057,5.21557027,2500.6,2500.1,2.39986323]
[1748836006870,2.81613662,2500.6,2500.1,2.39986323]
[1748836007276,2.81613662,2500.6,2500.0,2.39999032]
[1748836007661,2.81613662,2500.6,2500.1,2.3999021]
[1748836008003,5.21556682,2500.6,2500.1,2.3999021]
[1748836008178,5.21556682,2500.6,2500.1,3.75809854]
[1748836008378,5.21556682,2500.6,2500.1,2.3999021]
[1748836008702,0.38023749,2500.5,2500.1,2.3999021]
[1748836008902,5.21556682,2500.6,2500.1,2.3999021]
[1748836009202,0.38023429,2500.5,2500.1,2.3999021]
[1748836009397,2.81613662,2500.6,2500.1,2.3999021]
[1748836009605,0.38023437,2500.5,2500.2,2.39980668]
[1748836009764,2.81613662,2500.6,2500.1,2.95805992]
[1748836010105,0.38023734,2500.5,2500.1,2.95805992]
[1748836010270,2.81613662,2500.6,2500.1,2.95805992]
[1748836010470,0.3802376,2500.5,2500.1,2.95805992]
[1748836010680,5.21557644,2500.6,2500.1,2.95805992]
[1748836010877,0.38024115,2500.5,2500.1,2.95805992]
[1748836011079,5.21557644,2500.6,2500.1,2.95805992]
[1748836011282,0.38024346,2500.5,2500.1,2.39987056]
[1748836011482,5.21557644,2500.6,2500.1,2.39987056]
[1748836011704,0.38023782,2500.5,2500.1,2.39987056]
[1748836011907,5.21557644,2500.6,2500.1,2.39987056]
[1748836012095,0.3802284,2500.5,2500.1,2.39987056]
[1748836012296,5.21557644,2500.6,2500.1,2.39987056]
[1748836012495,0.38023335,2500.5,2500.1,2.39987056]
[1748836012703,5.21557644,2500.6,2500.1,2.39987056]
[1748836013012,0.38024622,2500.5,2500.0,2.39995593]
[1748836013186,5.21557644,2500.6,2500.0,2.39995593]
[1748836013387,0.38024629,2500.5,2500.0,2.39995593]
[1748836013685,5.21557644,2500.6,2500.0,2.39995593]
[1748836013885,0.38025541,2500.5,2500.0,2.39995593]
[1748836014196,5.21557644,2500.6,2500.1,2.39989993]
[1748836014397,0.3802572,2500.5,2500.1,2.39989993]
[1748836014601,5.21557644,2500.6,2500.1,2.39989993]
[1748836014905,0.38026312,2500.5,2500.0,3.0686545]
[1748836015113,2.39956976,2500.5,2500.0,0.66870278]
[1748836015305,2.81613662,2500.4,2500.0,3.06869602]
[1748836015503,2.81613662,2500.4,2500.0,0.66870278]
[1748836015823,2.81613662,2500.4,2499.5,13.47497069]
[1748836015824,0.7536,2500.1,2499.5,8.26585126]
[1748836016030,3.15352983,2500.1,2499.5,1.1154345]
[1748836016171,5.21613859,2500.0,2499.5,3.51585103]
[1748836017312,5.21613859,2500.0,2499.5,0.3210345]
[1748836017475,2.40012159,2499.9,2499.4,2.40054595]
[1748836017675,5.21618138,2500.0,2499.4,2.40054595]
[1748836017980,0.37994593,2499.9,2499.4,2.40054595]
[1748836018179,5.21618138,2500.0,2499.4,2.40054595]
[1748836020179,5.21614718,2500.0,2499.3,3.18603789]
[1748836020408,0.7595,2499.7,2499.1,3.24384848]
[1748836020595,0.7595,2499.7,2499.2,2.400679]
[1748836020983,0.7595,2499.7,2499.3,2.4006448]
[1748836021498,3.15979432,2499.7,2499.2,2.40076441]
[1748836021694,2.81613662,2499.6,2499.2,2.40076441]
[1748836021899,2.81613662,2499.6,2499.2,3.07563423]
[1748836022093,0.55,2499.5,2499.1,0.01]
[1748836022312,5.216732,2499.4,2499.1,0.01]
[1748836022684,0.7954,2499.3,2499.1,0.01]
[1748836023688,3.19612951,2499.3,2499.1,0.01]
[1748836023915,5.21690486,2499.2,2499.1,0.01]
[1748836024420,2.81613662,2499.2,2499.1,0.01]
[1748836024797,5.21690486,2499.2,2499.1,0.01]
[1748836025581,5.99490486,2499.2,2499.1,0.01]
[1748836028011,6.54490486,2499.2,2499.1,0.01]
[1748836028344,14.54490486,2499.2,2499.1,0.01]
[1748836028636,17.73958182,2499.2,2499.1,0.01]
[1748836029003,14.9234452,2499.2,2499.1,0.01]
[1748836029385,20.1864452,2499.2,2499.1,0.01]
[1748836030491,23.00258182,2499.2,2499.1,0.01]
[1748836031023,22.62404148,2499.2,2499.1,0.01]
[1748836031224,23.00206948,2499.2,2499.1,0.01]
[1748836032246,20.18593286,2499.2,2499.1,0.01]
[1748836033635,23.00206948,2499.2,2499.1,0.01]
[1748836033945,25.40206948,2499.2,2499.1,0.01]
[1748836035042,29.61106948,2499.2,2499.1,0.01]
[1748836035446,29.61061424,2499.2,2499.1,0.01]
[1748836035769,2.95172924,2498.2,2498.1,0.01]
[1748836035905,0.55,2498.2,2498.1,0.01]
[1748836036244,2.95172924,2498.2,2498.1,0.01]
[1748836036911,0.55,2498.2,2498.1,0.01]
[1748836038745,4.16,2498.4,2498.1,2.41182067]
[1748836039343,4.16,2498.4,2498.1,0.01]
[1748836040750,6.56153868,2498.4,2498.1,0.01]
[1748836041109,4.16,2498.4,2498.1,0.01]
[1748836041410,6.56160815,2498.4,2498.1,0.01]
[1748836041744,0.55,2498.5,2498.1,0.01]
[1748836042627,2.95144421,2498.5,2498.1,0.01]
[1748836044860,5.21769386,2498.4,2498.1,0.01]
[1748836045066,2.81613662,2498.4,2498.1,0.01]
[1748836045253,2.95148221,2498.5,2498.1,0.01]
[1748836045454,5.76761883,2498.5,2498.1,0.01]
[1748836045654,2.40154293,2498.4,2498.1,0.01]
[1748836047485,5.76761596,2498.5,2498.1,0.01]
[1748836047658,2.40153709,2498.4,2498.1,0.01]
[1748836048385,5.76761328,2498.5,2498.1,0.01]
[1748836050042,0.55,2498.3,2498.1,0.01]
[1748836051151,2.95168147,2498.3,2498.1,0.01]
[1748836051347,0.55,2498.4,2498.1,0.01]
[1748836052148,2.95154526,2498.4,2498.1,0.01]
[1748836052991,0.47421619,2499.0,2498.2,0.7632]
[1748836053147,0.37954887,2498.9,2498.4,0.7514]
[1748836053358,0.37954887,2498.8,2498.4,3.15287087]
[1748836053558,2.40092909,2499.1,2498.5,2.40138214]
[1748836053885,0.37973095,2499.0,2498.5,2.40138214]
[1748836054189,0.37973095,2498.9,2498.5,2.40138214]
[1748836054397,0.37973095,2498.8,2498.5,2.40138214]
[1748836054555,8.0,2499.0,2498.4,3.15290588]
[1748836054754,0.37987214,2498.9,2498.4,3.15290588]
[1748836054975,0.37987214,2498.8,2498.4,3.15290588]
[1748836055188,10.40099588,2499.0,2498.4,3.15290588]
[1748836055383,0.37985737,2498.9,2498.4,3.15290588]
[1748836055589,0.37985737,2498.8,2498.4,1.33861163]
[1748836055787,13.21713138,2499.0,2498.4,1.33861163]
[1748836056092,2.40123407,2498.8,2498.4,0.7514]
[1748836056304,0.38007318,2498.7,2498.4,0.7514]
[1748836056612,2.40115255,2498.8,2498.4,0.7514]
[1748836056763,0.38018443,2498.7,2498.4,0.7514]
[1748836056966,2.40115255,2498.8,2498.4,0.7514]
[1748836057164,0.3802005,2498.7,2498.4,0.7514]
[1748836057365,2.40115255,2498.8,2498.4,0.7514]
[1748836057673,2.78151958,2498.7,2498.4,0.7514]
[1748836057882,2.40130463,2498.7,2498.4,0.7514]
[1748836058259,2.40130623,2498.7,2498.4,0.7514]
[1748836061096,2.40134631,2498.6,2498.2,0.8165]
[1748836061519,2.40134631,2498.6,2498.1,0.01]
[1748836061720,2.40153617,2498.5,2498.1,0.01]
[1748836062714,0.55,2498.6,2498.1,0.01]
[1748836062920,0.55,2498.5,2498.1,0.01]
[1748836063122,2.40159517,2498.4,2498.1,0.01]
[1748836065099,2.40172924,2498.2,2498.1,0.01]
[1748836066030,2.95172924,2498.2,2498.1,0.01]
[1748836066329,6.14813827,2498.2,2498.1,0.01]
[1748836066695,6.96057001,2498.2,2498.1,0.01]
[1748836067638,14.96057001,2498.2,2498.1,0.01]
[1748836070213,14.96034972,2498.2,2498.1,0.01]
[1748836074049,17.36034972,2498.2,2498.1,0.01]
[1748836074252,14.96034972,2498.2,2498.1,0.01]
[1748836074558,14.959911,2498.2,2498.1,0.01]
[1748836075058,19.168911,2498.2,2498.1,0.01]
[1748836075257,14.959911,2498.2,2498.1,0.01]
[1748836076062,17.359911,2498.2,2498.1,0.01]
[1748836078959,17.35964404,2498.2,2498.1,0.01]
[1748836081775,17.35952112,2498.2,2498.1,0.01]
[1748836082961,18.46152112,2498.2,2498.1,0.01]
[1748836084849,25.48665774,2498.2,2498.1,0.01]
[1748836085190,22.67052112,2498.2,2498.1,0.01]
[1748836085390,23.3022333,2498.2,2498.1,0.01]
[1748836085682,22.67052112,2498.2,2498.1,0.01]
[1748836086190,23.30205095,2498.2,2498.1,0.01]
[1748836086384,26.11818757,2498.2,2498.1,0.01]
[1748836086879,23.30205095,2498.2,2498.1,0.01]
[1748836088594,25.48647539,2498.2,2498.1,0.01]
[1748836088899,22.67033877,2498.2,2498.1,0.01]
[1748836089266,25.48647539,2498.2,2498.1,0.01]
[1748836089670,21.56833877,2498.2,2498.1,0.01]
[1748836089898,26.82833877,2498.2,2498.1,0.01]
[1748836090464,29.64448102,2498.2,2498.1,0.01]
[1748836091214,29.64448102,2498.2,2497.1,0.8164]
[1748836091215,23.99756425,2497.2,2497.1,0.01]
[1748836091421,27.29432875,2497.2,2497.1,0.01]
[1748836092554,26.82050617,2497.2,2497.1,0.01]
[1748836093085,19.84636955,2497.2,2497.1,0.01]
[1748836093280,27.29401701,2497.2,2497.1,0.01]
[1748836093689,27.29391275,2497.2,2497.1,0.01]
[1748836094198,22.03391275,2497.2,2497.1,0.01]
[1748836094492,23.08591275,2497.2,2497.1,0.01]
[1748836094829,23.0855851,2497.2,2497.1,0.01]
[1748836095167,23.47672841,2497.2,2497.1,0.01]
[1748836096016,18.21572841,2497.2,2497.1,0.01]
[1748836096303,23.47672841,2497.2,2497.1,0.01]
[1748836096662,12.44959179,2497.2,2497.1,0.01]
[1748836096870,16.4336621,2497.2,2497.1,0.01]
[1748836097102,16.9836621,2497.2,2497.1,0.01]
[1748836097311,3.1726621,2497.2,2497.1,0.01]
[1748836097515,2.40269101,2497.2,2497.1,0.8192]
[1748836097685,2.95269101,2497.2,2497.1,0.8192]
[1748836097887,2.40269101,2497.2,2497.1,0.8192]
[1748836098575,2.95269101,2497.2,2497.1,0.8192]
[1748836098778,2.40269101,2497.2,2497.1,0.8192]
[1748836098978,2.95269101,2497.2,2497.1,0.8192]
[1748836099906,2.95269101,2497.2,2497.1,0.01]
[1748836099907,11.51526594,2497.2,2497.1,0.01]
[1748836100148,10.70156594,2497.2,2497.1,0.01]
[1748836101935,18.70156594,2497.2,2497.1,0.01]
[1748836102726,11.33130645,2497.2,2497.1,0.01]
[1748836102916,15.48930645,2497.2,2497.1,0.01]
[1748836103119,15.11069101,2497.2,2497.1,0.01]
[1748836103426,18.30568325,2497.2,2497.1,0.01]
[1748836104229,15.48954663,2497.2,2497.1,0.01]
[1748836104421,15.48956813,2497.2,2497.1,0.01]
[1748836104733,11.33156813,2497.2,2497.1,0.01]
[1748836104937,15.48956813,2497.2,2497.1,0.01]
[1748836105104,11.33156813,2497.2,2497.1,0.01]
[1748836105433,11.33156813,2497.2,2497.1,0.8341]
[1748836105816,8.92887712,2497.2,2497.1,0.8341]
[1748836106122,11.33156813,2497.2,2497.1,0.8341]
[1748836106332,8.92887712,2497.2,2497.1,0.8341]
[1748836106517,11.33156813,2497.2,2497.1,0.8341]
[1748836107098,8.92887712,2497.2,2497.1,0.8341]
[1748836107299,11.33156813,2497.2,2497.1,0.8341]
[1748836108817,11.33204012,2497.2,2497.1,0.8341]
[1748836109142,10.95269101,2497.2,2497.1,0.8341]
[1748836109318,11.33204483,2497.2,2497.1,0.8341]
[1748836109502,8.92935382,2497.2,2497.1,0.8341]
[1748836109836,8.37935382,2497.2,2497.1,0.8341]
[1748836110134,0.37935382,2497.2,2497.1,0.8341]
[1748836110339,2.40260942,2497.3,2497.1,0.8341]
[1748836112223,2.78241931,2497.2,2497.1,0.8341]
[1748836112626,0.3797283,2497.2,2497.1,0.8341]
[1748836112921,0.55,2497.5,2497.1,0.8341]
[1748836112922,8.0,2497.5,2497.2,0.823]
[1748836113127,0.37976207,2497.4,2497.2,0.823]
[1748836113435,2.40231966,2497.6,2497.2,1.14657242]
[1748836113636,0.37976121,2497.5,2497.3,0.8079]
[1748836113931,2.40223652,2497.7,2497.3,0.8079]
[1748836114133,0.37985664,2497.6,2497.4,0.8164]
[1748836114441,10.95203763,2497.9,2497.5,0.8164]
[1748836114635,0.37988719,2497.8,2497.5,0.8164]
[1748836114805,0.37988719,2497.7,2497.5,0.8164]
[1748836115004,2.40211516,2497.8,2497.5,0.8164]
[1748836115240,0.37989756,2497.7,2497.5,0.8164]
[1748836115440,8.55,2497.9,2497.5,0.8164]
[1748836115604,2.78199391,2497.8,2497.5,0.8164]
[1748836115937,10.9520249,2497.9,2497.5,0.8164]
[1748836116137,0.37979877,2497.8,2497.5,0.8164]
[1748836116355,2.40182607,2498.1,2497.6,3.17490206]
[1748836116549,0.37984374,2498.0,2497.7,0.7726]
[1748836116753,2.40182607,2498.1,2497.7,0.7726]
[1748836116924,0.37968887,2498.0,2497.7,0.7726]
[1748836117102,2.81613662,2498.0,2497.7,0.7726]
[1748836117308,2.40211386,2497.8,2497.7,0.7726]
[1748836117914,2.40211386,2497.8,2497.2,0.812]
[1748836117915,2.40226392,2497.7,2497.2,0.812]
[1748836118123,2.40226537,2497.7,2497.3,0.812]
[1748836118568,5.59766386,2497.8,2497.3,3.21456286]
[1748836118842,0.3793667,2497.9,2497.6,2.40223795]
[1748836119042,0.37939192,2498.1,2497.8,0.7822]
[1748836119251,2.4016852,2498.3,2497.8,0.7822]
[1748836119426,2.78115119,2498.2,2497.6,2.40221363]
[1748836119610,2.78098573,2498.2,2497.8,0.7822]
[1748836120252,2.40183971,2498.1,2497.8,0.7822]
[1748836120415,2.78104236,2498.2,2497.8,0.7822]
[1748836120948,2.40182539,2498.1,2497.8,0.7822]
[1748836121147,0.92925211,2498.2,2497.8,0.7822]
[1748836121350,3.33103486,2498.2,2497.8,0.7822]
[1748836121756,2.95178275,2498.2,2497.8,0.7822]
[1748836121941,3.33084541,2498.2,2497.8,0.7822]
[1748836122137,2.40183328,2498.1,2497.8,0.7822]
[1748836122336,2.40198439,2498.0,2497.8,0.7822]
[1748836122537,2.40201769,2497.9,2497.8,0.7822]
[1748836122742,2.95212014,2497.8,2497.3,0.8148]
[1748836123129,2.40230887,2497.6,2497.3,0.8148]
[1748836123535,5.21839464,2497.7,2497.3,0.8148]
[1748836123953,2.95214474,2497.8,2497.3,0.8148]
[1748836124140,2.95214474,2497.8,2497.3,3.21736873]
[1748836124336,0.55,2497.8,2497.3,3.21736873]
[1748836124538,0.55,2497.8,2497.4,2.40247156]
[1748836124753,0.55,2497.8,2497.3,3.21735038]
[1748836124976,2.95212166,2497.8,2497.3,3.21735038]
[1748836125258,0.55,2497.8,2497.3,3.21735038]
[1748836125753,2.95216285,2497.8,2497.3,0.8148]
[1748836126155,0.55,2497.8,2497.3,3.2173382]
[1748836126342,2.95212167,2497.8,2497.3,3.2173382]
[1748836127157,0.55,2497.8,2497.3,3.7803472]
[1748836127919,0.55,2497.8,2497.4,2.40248779]
[1748836128445,0.55,2497.8,2497.3,3.78033825]
[1748836128831,0.55,2497.8,2497.4,2.40249408]
[1748836129454,0.55,2497.8,2497.3,3.78033873]
[1748836130052,0.55,2497.8,2497.4,2.40248881]
[1748836130256,0.55,2497.8,2497.4,0.8122]
[1748836130554,0.55,2497.9,2497.6,0.8122]
[1748836130757,0.3792561,2498.0,2497.6,0.8122]
[1748836131129,0.55,2498.0,2497.6,0.8122]
[1748836131736,13.21800324,2498.1,2497.6,3.21450177]
[1748836131937,13.21800324,2498.1,2497.6,0.8122]
[1748836132622,13.21800324,2498.1,2497.6,3.81397656]
[1748836132822,13.21800324,2498.1,2497.6,1.41168424]
[1748836133062,10.81613662,2498.1,2497.6,1.41168424]
[1748836133626,13.2180351,2498.1,2497.6,1.41168424]
[1748836134255,2.81613662,2497.9,2497.6,0.8122]
[1748836134443,2.40220523,2497.8,2497.6,0.8122]
[1748836135166,2.95221003,2497.7,2497.6,0.8122]
[1748836135328,2.95221545,2497.7,2497.4,0.8247]
[1748836136028,0.55,2497.7,2497.4,0.8247]
[1748836137175,0.55,2497.7,2497.4,3.22718286]
[1748836137380,5.21816251,2497.9,2497.4,3.22718286]
[1748836137538,0.55,2497.9,2497.6,0.8247]
[1748836138065,0.55,2498.0,2497.6,0.8247]
[1748836138265,2.78199098,2497.9,2497.6,0.8247]
[1748836138454,2.40202183,2497.9,2497.6,0.8247]
[1748836138665,2.95196821,2498.0,2497.6,0.8247]
[1748836138863,0.38010232,2497.9,2497.6,0.8247]
[1748836139059,2.95196821,2498.0,2497.6,0.8247]
[1748836139274,0.38010649,2497.9,2497.6,0.8247]
[1748836139577,2.95196821,2498.0,2497.6,0.8247]
[1748836139777,0.38024512,2497.9,2497.6,0.8247]
[1748836139950,2.95196821,2498.0,2497.6,0.8247]
[1748836140152,0.38024321,2497.9,2497.6,0.8247]
[1748836140350,14.55681874,2498.2,2497.7,0.8247]
[1748836140553,0.38024284,2498.1,2497.7,0.8247]
[1748836140748,0.38024284,2498.0,2497.7,0.8247]
[1748836141087,0.38024284,2497.9,2497.7,0.8247]
[1748836141381,2.40182614,2498.1,2497.7,1.42553388]
[1748836141541,0.38033324,2498.0,2497.7,1.42553388]
[1748836141742,0.38033324,2497.9,2497.7,1.42553388]
[1748836142078,8.0,2498.2,2497.7,1.42553388]
[1748836142278,0.38047394,2498.1,2497.7,1.42553388]
[1748836142473,0.38047394,2498.0,2497.7,1.42553388]
[1748836142777,0.38070739,2497.9,2497.7,1.42553388]
[1748836143086,0.38070739,2497.8,2497.7,1.42553388]
[1748836143265,0.38070695,2497.8,2497.7,1.42553388]
[1748836143596,0.38070485,2497.8,2497.7,0.8247]
[1748836146160,2.4022819,2497.7,2497.3,0.7644]
[1748836146359,2.81613662,2497.7,2497.3,0.7644]
[1748836146669,2.40218498,2497.8,2497.3,0.7644]
[1748836146670,0.55,2497.8,2497.3,0.7644]
[1748836146862,0.38094309,2497.7,2497.4,2.71915314]
[1748836147063,0.38094159,2497.6,2497.4,2.71915314]
[1748836147282,2.95212389,2497.8,2497.4,0.31670743]
[1748836147489,2.40233982,2497.6,2497.3,0.7644]
[1748836147856,2.40225442,2497.7,2497.3,0.7644]
[1748836148153,0.38092908,2497.6,2497.3,0.7644]
[1748836148357,2.4022195,2497.7,2497.3,0.7644]
[1748836148555,0.38093492,2497.6,2497.3,0.7644]
[1748836148756,2.4022195,2497.7,2497.3,0.7644]
[1748836148957,0.38096801,2497.6,2497.3,0.7644]
[1748836149289,2.4022195,2497.7,2497.3,0.7644]
[1748836149449,0.3809618,2497.6,2497.3,0.7644]
[1748836149657,2.40235812,2497.6,2497.3,0.7644]
[1748836150264,2.40240417,2497.5,2497.3,0.7644]
[1748836150966,2.78351877,2497.4,2497.1,0.8091]